bitfinex/quotes_BTCUSD_20251219
["timestamp","ask_amount","ask_price","bid_price","bid_amount"]
[1766103848313,0.01753196,85558.0,85549.0,0.0005031]
[1766103850555,0.51403196,85558.0,85549.0,0.0005031]
[1766103850688,0.24542553,85566.0,85549.0,0.0005031]
[1766103850892,0.01753053,85565.0,85552.0,0.58246]
[1766103851097,0.59798,85566.0,85549.0,0.0005031]
[1766103851321,0.59798,85560.0,85549.0,0.0005031]
[1766103851538,1.09448,85557.0,85549.0,0.00076217]
[1766103852505,0.4965,85557.0,85549.0,0.00076217]
[1766103852862,0.59798,85562.0,85549.0,0.00076217]
[1766103853073,0.70498228,85570.0,85549.0,0.00076217]
[1766103853275,0.60416,85565.0,85549.0,0.00076217]
[1766103853451,0.4819,85560.0,85549.0,0.00076217]
[1766103853674,1.08606,85560.0,85549.0,0.00076217]
[1766103853872,0.4819,85560.0,85549.0,0.00076217]
[1766103854095,0.60416,85559.0,85549.0,0.00076217]
[1766103854755,1.08606,85559.0,85549.0,0.00076217]
[1766103854955,0.60416,85569.0,85559.0,0.001099]
[1766103855129,0.70498228,85570.0,85549.0,0.00076217]
[1766103855130,0.03513993,85574.0,85552.0,0.39417]
[1766103855275,1.18688228,85580.0,85549.0,0.00076217]
[1766103855276,0.60416,85576.0,85555.0,0.07017749]
[1766103855474,1.08606,85575.0,85556.0,0.3989859]
[1766103855697,1.08606,85575.0,85556.0,0.38496]
[1766103855698,0.4819,85575.0,85556.0,0.38496]
[1766103855898,1.08606,85574.0,85557.0,0.01402573]
[1766103856294,1.08606,85574.0,85555.0,0.07017749]
[1766103856295,0.4819,85574.0,85555.0,0.07017749]
[1766103856813,0.60416,85577.0,85555.0,0.07017749]
[1766103857198,1.08606,85581.0,85555.0,0.07017749]
[1766103857394,0.60416,85585.0,85555.0,0.07017749]
[1766103857545,0.03513396,85585.0,85569.0,0.38496]
[1766103857754,0.4819,85588.0,85571.0,0.38496]
[1766103857968,0.60416,85598.0,85571.0,0.38496]
[1766103858208,0.03512857,85596.0,85573.0,0.38496]
[1766103858352,1.08606,85599.0,85573.0,0.38496]
[1766103858534,0.06406583,85600.0,85573.0,0.38496]
[1766103858734,0.60416,85595.0,85573.0,0.38496]
[1766103858930,0.60416,85599.0,85573.0,0.38496]
[1766103859151,0.4819,85596.0,85573.0,0.38496]
[1766103859389,0.4819,85592.0,85573.0,0.38496]
[1766103859685,1.08606,85591.0,85573.0,0.38496]
[1766103860123,0.71666452,85600.0,85570.0,0.05928]
[1766103860325,0.95030942,85600.0,85570.0,0.05928]
[1766103860555,0.60416,85598.0,85570.0,0.05928]
[1766103860799,0.71666452,85600.0,85570.0,0.44424]
[1766103860800,0.4819,85593.0,85570.0,0.44424]
[1766103861021,0.03512857,85601.0,85557.0,0.03512857]
[1766103861022,0.60416,85584.0,85569.0,0.05928]
[1766103861225,0.001099,85570.0,85562.0,0.05928]
[1766103861448,0.60416,85572.0,85562.0,0.05928]
[1766103862820,0.01168347,85591.0,85562.0,0.05928]
[1766103863137,0.60416,85581.0,85562.0,0.44424]
[1766103863279,0.60416,85587.0,85562.0,0.44424]
[1766103863479,0.4819,85582.0,85562.0,0.05928]
[1766103863678,0.4819,85578.0,85562.0,0.05928]
[1766103863930,1.08606,85578.0,85562.0,0.05928]
[1766103864505,0.60416,85583.0,85563.0,0.38496]
[1766103864704,0.4819,85580.0,85563.0,0.38496]
[1766103864908,0.4819,85574.0,85562.0,0.05928]
[1766103865211,0.01288499,85573.0,85562.0,0.05928]
[1766103865413,0.4819,85582.0,85563.0,0.38496]
[1766103865732,0.24536112,85589.0,85563.0,0.38496]
[1766103865913,0.01168374,85589.0,85563.0,0.38496]
[1766103866112,0.10238374,85589.0,85563.0,0.38496]
[1766103866529,0.4819,85585.0,85563.0,0.38496]
[1766103866730,0.60416,85581.0,85563.0,0.38496]
[1766103867135,0.24536791,85586.0,85563.0,0.38496]
[1766103867340,0.60416,85582.0,85563.0,0.38496]
[1766103867547,1.08606,85579.0,85563.0,0.38496]
[1766103868494,0.4819,85579.0,85563.0,0.38496]
[1766103873311,0.03513252,85590.0,85568.0,0.07017749]
[1766103873516,0.10161339,85589.0,85569.0,0.38496]
[1766103873769,1.09697339,85588.0,85569.0,0.38496]
[1766103873903,0.60416,85586.0,85569.0,0.38496]
[1766103874374,0.0907,85589.0,85569.0,0.38496]
[1766103874570,0.0907,85589.0,85569.0,0.44424]
[1766103877206,1.08606,85588.0,85569.0,0.44424]
[1766103877408,0.0907,85590.0,85569.0,0.05928]
[1766103877667,0.4819,85585.0,85569.0,0.05928]
[1766103877909,0.60416,85581.0,85569.0,0.05928]
[1766103878081,0.60416,85589.0,85570.0,0.38496]
[1766103878279,0.0109164,85588.0,85570.0,0.38496]
[1766103878632,0.03513252,85591.0,85570.0,0.38496]
[1766103878633,0.0907,85589.0,85570.0,0.38496]
[1766103878831,1.08606,85588.0,85570.0,0.38496]
[1766103879035,0.4819,85588.0,85570.0,0.38496]
[1766103879244,0.60416,85587.0,85570.0,0.38496]
[1766103880053,1.08606,85587.0,85570.0,0.38496]
[1766103880896,0.60416,85586.0,85570.0,0.38496]
[1766103881129,0.4819,85596.0,85581.0,0.07017749]
[1766103881346,0.01092182,85595.0,85582.0,0.38496]
[1766103881552,0.4819,85596.0,85582.0,0.38496]
[1766103881788,1.08606,85595.0,85581.0,0.07017749]
[1766103882226,1.08642792,85595.0,85581.0,0.07017749]
[1766103882796,1.08642792,85595.0,85581.0,0.05617749]
[1766103883167,0.00036792,85595.0,85581.0,0.05617749]
[1766103883370,0.61592,85594.0,85578.0,0.38496]
[1766103883573,0.61592,85593.0,85581.0,0.07017749]
[1766103883978,1.10485,85593.0,85581.0,0.07017749]
[1766103885357,0.00036792,85595.0,85576.0,0.05928]
[1766103885569,0.00036792,85595.0,85561.0,0.1478]
[1766103885570,0.001099,85576.0,85575.0,0.05928]
[1766103885772,1.10485,85580.0,85574.0,0.05928]
[1766103886445,0.48893,85580.0,85574.0,0.05928]
[1766103886930,0.48893,85584.0,85574.0,0.05928]
[1766103887105,0.61592,85582.0,85574.0,0.05928]
[1766103888290,0.61592,85582.0,85572.0,0.12945749]
[1766103888518,1.10485,85581.0,85572.0,0.12945749]
[1766103890157,1.10485,85587.0,85572.0,0.12945749]
[1766103890791,0.61592,85594.0,85572.0,0.12945749]
[1766103890947,0.48893,85589.0,85572.0,0.12945749]
[1766103891145,0.61592,85586.0,85572.0,0.12945749]
[1766103891369,1.10485,85586.0,85572.0,0.12945749]
[1766103891571,1.10485,85586.0,85572.0,0.51441749]
[1766103891772,0.48893,85586.0,85573.0,0.38496]
[1766103893033,0.61592,85591.0,85573.0,0.38496]
[1766103893247,0.48929792,85595.0,85573.0,0.38496]
[1766103893451,0.00036792,85595.0,85585.0,0.45513749]
[1766103893669,0.00036792,85595.0,85585.0,0.12945749]
[1766103893818,0.46708048,85639.0,85586.0,0.39898098]
[1766103894020,0.0907,85611.0,85586.0,0.38496]
[1766103894224,0.48893,85605.0,85587.0,0.01402082]
[1766103894405,1.10485,85604.0,85587.0,0.39861082]
[1766103894609,1.10485,85604.0,85587.0,0.38459]
[1766103894827,1.10485,85604.0,85588.0,0.01402065]
[1766103895428,1.10485,85614.0,85589.0,0.38459]
[1766103895630,0.48893,85606.0,85590.0,0.01402032]
[1766103895829,0.61592,85605.0,85590.0,0.01402032]
[1766103896912,1.10485,85605.0,85590.0,0.01402032]
[1766103897606,0.93925882,85605.0,85590.0,0.01402032]
[1766103898314,0.93925882,85605.0,85589.0,0.38459]
[1766103899377,0.48893,85614.0,85591.0,0.55018]
[1766103899627,0.00011031,85615.0,85598.0,0.62035749]
[1766103899840,0.00011031,85615.0,85600.0,0.55018]
[1766103900575,0.90670466,85615.0,85600.0,0.55018]
[1766103900796,0.48893,85614.0,85600.0,0.55018]
[1766103901115,0.06496743,85632.0,85600.0,0.55018]
[1766103901318,0.0907,85626.0,85600.0,0.55029031]
[1766103901520,0.48893,85622.0,85600.0,0.55029031]
[1766103902160,0.4516,85619.0,85600.0,3.1e-07]
[1766103902325,0.45269869,85600.0,85585.0,0.07017749]
[1766103902489,0.4516,85598.0,85588.0,0.02804]
[1766103902685,1.02259,85598.0,85588.0,0.02804]
[1766103903315,0.4516,85598.0,85588.0,0.02804]
[1766103903517,0.00011023,85600.0,85588.0,0.61865]
[1766103903736,0.00011023,85600.0,85590.0,0.59061]
[1766103904349,1.02270023,85600.0,85588.0,0.02804]
[1766103904570,1.02259,85599.0,85588.0,0.02804]
[1766103904950,0.4516,85598.0,85588.0,0.02804]
[1766103905158,0.4516,85593.0,85583.0,0.0907]
[1766103905366,0.4516,85592.0,85584.0,0.05928]
[1766103906391,0.001098,85584.0,85574.0,0.0001]
[1766103906604,1.02259,85583.0,85575.0,0.05928]
[1766103907278,1.0063591,85583.0,85575.0,0.05928]
[1766103907487,1.0063591,85583.0,85573.0,0.0907]
[1766103907697,1.0063591,85583.0,85573.0,0.14998]
[1766103907904,0.4516,85589.0,85573.0,0.0907]
[1766103908131,0.4516,85589.0,85572.0,0.07017749]
[1766103908132,0.4516,85587.0,85572.0,0.07017749]
[1766103908326,0.4516,85585.0,85572.0,0.07017749]
[1766103908539,0.4516,85583.0,85572.0,0.07017749]
[1766103908969,0.01752705,85582.0,85572.0,0.07017749]
[1766103909178,0.4516,85589.0,85572.0,0.07017749]
[1766103909331,1.02259,85588.0,85572.0,0.07017749]
[1766103909531,0.57099,85589.0,85572.0,0.07017749]
[1766103909736,1.02259,85586.0,85572.0,0.07017749]
[1766103909959,0.05928,85585.0,85572.0,0.07017749]
[1766103910551,0.57099,85584.0,85572.0,0.07017749]
[1766103910806,0.57099,85582.0,85572.0,0.07017749]
[1766103912536,0.4516,85583.0,85572.0,0.07017749]
[1766103912742,0.05928,85585.0,85573.0,0.05938]
[1766103912959,0.05928,85585.0,85575.0,0.66043]
[1766103913164,0.05928,85585.0,85576.0,0.05938]
[1766103913366,0.05928,85585.0,85576.0,0.66043]
[1766103914859,0.00011023,85600.0,85582.0,0.05938]
[1766103914860,0.05928,85596.0,85582.0,0.05938]
[1766103915071,0.05928,85596.0,85586.0,0.66043]
[1766103915301,0.00011023,85600.0,85587.0,0.05938]
[1766103915497,0.00011023,85600.0,85586.0,0.05928]
[1766103915716,1.05008,85590.0,85586.0,0.05928]
[1766103915921,0.47774,85589.0,85581.0,0.05928]
[1766103916153,0.47774,85583.0,85574.0,0.05928]
[1766103916354,1.05008,85583.0,85574.0,0.05928]
[1766103916776,0.57234,85588.0,85574.0,0.05928]
[1766103917196,1.05008,85588.0,85574.0,0.05928]
[1766103918247,0.05928,85590.0,85576.0,0.05938]
[1766103918446,0.05928,85590.0,85579.0,0.60105]
[1766103919226,0.05928,85590.0,85578.0,0.05938]
[1766103919449,0.63162,85590.0,85574.0,0.05928]
[1766103919741,0.63162,85590.0,85574.0,0.66033]
[1766103921195,0.05928,85590.0,85574.0,0.66033]
[1766103921494,1.10936,85590.0,85574.0,0.66033]
[1766103921672,0.94394941,85590.0,85574.0,0.66033]
[1766103921872,0.24543775,85600.0,85574.0,0.66033]
[1766103921873,0.47774,85597.0,85574.0,0.05928]
[1766103923337,0.47774,85597.0,85574.0,0.66033]
[1766103923672,0.57234,85594.0,85574.0,0.66033]
[1766103923874,0.47774,85593.0,85574.0,0.66033]
[1766103924068,1.05008,85591.0,85574.0,0.66033]
[1766103924275,0.47774,85590.0,85574.0,0.66033]
[1766103924916,0.47774,85590.0,85576.0,0.66043]
[1766103927119,1.05008,85590.0,85576.0,0.66043]
[1766103929768,0.47774,85598.0,85576.0,0.05938]
[1766103929985,0.01168251,85598.0,85576.0,0.05938]
[1766103930191,1.05008,85597.0,85576.0,0.05938]
[1766103930416,0.57234,85597.0,85577.0,0.05928]
[1766103930650,0.01168347,85591.0,85577.0,0.05928]
[1766103930975,0.64063935,85600.0,85549.0,0.03578703]
[1766103930976,1.05008,85576.0,85557.0,0.0907]
[1766103931215,1.05008,85574.0,85558.0,0.05928]
[1766103931424,0.001098,85577.0,85558.0,0.05928]
[1766103931632,0.47774,85567.0,85558.0,0.05928]
[1766103931844,1.05008,85567.0,85558.0,0.05928]
[1766103932473,1.05008,85567.0,85558.0,0.05964792]
[1766103933740,0.47774,85567.0,85558.0,0.05964792]
[1766103933976,0.70488136,85580.0,85558.0,0.05964792]
[1766103934114,1.05008,85579.0,85558.0,0.05964792]
[1766103934341,0.47774,85579.0,85558.0,0.05964792]
[1766103934549,0.47774,85575.0,85558.0,0.05964792]
[1766103934922,0.70488136,85580.0,85558.0,0.05964792]
[1766103934923,1.05008,85574.0,85558.0,0.05964792]
[1766103935109,0.47774,85574.0,85560.0,0.66043]
[1766103938160,0.47774,85572.0,85558.0,0.05964792]
[1766103938372,0.01168483,85581.0,85558.0,0.05964792]
[1766103938373,1.75496136,85570.0,85558.0,0.05964792]
[1766103938594,1.05008,85570.0,85558.0,0.05964792]
[1766103938805,0.57234,85575.0,85558.0,0.66069792]
[1766103939021,0.47774,85577.0,85562.0,0.66043]
[1766103939445,0.47774,85577.0,85563.0,0.01402475]
[1766103939885,0.47774,85577.0,85562.0,0.66043]
[1766103940961,0.47774,85577.0,85563.0,0.66043]
[1766103941373,0.57234,85577.0,85564.0,0.05928]
[1766103941589,1.05008,85575.0,85564.0,0.05928]
[1766103941802,0.57234,85580.0,85566.0,0.60105]
[1766103942019,0.47774,85594.0,85573.0,0.05938]
[1766103942235,0.47774,85594.0,85578.0,0.60105]
[1766103942482,0.47774,85594.0,85578.0,0.66043]
[1766103944842,0.45014,85587.0,85574.0,0.05928]
[1766103945016,0.70488136,85590.0,85574.0,0.05928]
[1766103945249,1.04851,85589.0,85574.0,0.05928]
[1766103945455,0.45014,85588.0,85574.0,0.05928]
[1766103945632,0.70488136,85590.0,85574.0,0.05928]
[1766103945633,0.45014,85584.0,85574.0,0.05928]
[1766103945827,0.59837,85584.0,85574.0,0.05928]
[1766103947195,0.45014,85586.0,85574.0,0.05928]
[1766103948523,0.59837,85597.0,85581.0,0.07017749]
[1766103948724,0.45014,85596.0,85581.0,0.07017749]
[1766103949362,1.04851,85596.0,85581.0,0.07017749]
[1766103949765,0.59837,85594.0,85581.0,0.07017749]
[1766103950077,0.45014,85590.0,85581.0,0.07017749]
[1766103950468,0.001098,85581.0,85574.0,0.05928]
[1766103950809,0.59837,85583.0,85574.0,0.05928]
[1766103951468,0.001098,85574.0,85571.0,0.05928]
[1766103951693,0.001098,85574.0,85568.0,0.07017749]
[1766103951895,0.59837,85578.0,85565.0,0.10608]
[1766103952258,0.05928,85579.0,85568.0,0.07017749]
[1766103952259,0.45014,85575.0,85568.0,0.07017749]
[1766103952696,0.59837,85574.0,85565.0,0.05928]
[1766103952903,1.04851,85571.0,85560.0,0.0907]
[1766103954044,1.04851,85571.0,85558.0,0.09106792]
[1766103954245,0.45014,85571.0,85560.0,0.0907]
[1766103955135,0.05928,85574.0,85560.0,0.70137]
[1766103956672,0.45014,85572.0,85559.0,0.0907]
[1766103956880,1.75339136,85570.0,85559.0,0.0907]
[1766103957177,1.75339136,85570.0,85558.0,0.00036792]
[1766103957178,1.04851,85567.0,85558.0,0.00036792]
[1766103957396,0.05928,85566.0,85558.0,0.00036792]
[1766103959091,0.05928,85567.0,85560.0,0.61067]
[1766103959304,0.45014,85576.0,85562.0,0.61067]
[1766103961742,0.45014,85576.0,85562.0,0.74023]
[1766103962699,1.0367,85576.0,85562.0,0.74023]
[1766103962911,0.45437,85575.0,85562.0,0.74023]
[1766103963460,1.04093,85575.0,85562.0,0.74023]
[1766103964242,0.45437,85574.0,85558.0,0.00036792]
[1766103964449,1.04093,85572.0,85558.0,0.00036792]
[1766103964694,1.74581136,85570.0,85558.0,0.00036792]
[1766103966125,0.45437,85570.0,85558.0,0.73774792]
[1766103966381,0.01168347,85591.0,85558.0,0.73774792]
[1766103966382,0.70488136,85580.0,85563.0,0.12956]
[1766103966588,0.70488136,85580.0,85568.0,0.60782]
[1766103967385,0.001098,85568.0,85564.0,0.05928]
[1766103967588,0.45437,85573.0,85564.0,0.05928]
[1766103968349,1.04093,85572.0,85564.0,0.058182]
[1766103968553,0.45437,85571.0,85564.0,0.058182]
[1766103968752,0.45437,85565.0,85557.0,0.05928]
[1766103968954,1.04093,85563.0,85557.0,0.05928]
[1766103969356,1.04093,85563.0,85557.0,0.05911238]
[1766103970113,0.00036746,85565.0,85547.0,0.0907]
[1766103970336,0.45437,85563.0,85552.0,0.05928]
[1766103970557,0.45437,85561.0,85552.0,0.05928]
[1766103972293,0.58656,85561.0,85552.0,0.05928]
[1766103972494,0.45437,85560.0,85552.0,0.05928]
[1766103974519,0.00036746,85565.0,85555.0,0.62043]
[1766103974722,0.00036746,85565.0,85559.0,0.62043]
[1766103974839,0.70476521,85570.0,85559.0,0.75036]
[1766103975036,0.70476521,85570.0,85559.0,0.7504631]
[1766103975442,0.70476521,85570.0,85559.0,0.0001031]
[1766103975645,0.48388,85568.0,85559.0,3.1e-06]
[1766103975853,0.61789,85565.0,85559.0,3.1e-06]
[1766103976050,0.48388,85563.0,85559.0,3.1e-06]
[1766103976293,0.48388,85561.0,85559.0,3.1e-06]
[1766103978141,0.482781,85561.0,85559.0,3.1e-06]
[1766103978524,0.61789,85578.0,85559.0,3.1e-06]
[1766103978717,0.61789,85576.0,85559.0,3.1e-06]
[1766103978930,0.61789,85574.0,85559.0,3.1e-06]
[1766103979345,0.70476521,85570.0,85559.0,3.1e-06]
[1766103979542,0.61789,85569.0,85559.0,3.1e-06]
[1766103980164,0.61789,85567.0,85559.0,3.1e-06]
[1766103980399,0.48388,85566.0,85559.0,3.1e-06]
[1766103981365,0.08813042,85579.0,85559.0,0.6204331]
[1766103981576,1.10177,85575.0,85559.0,0.6204331]
[1766103981998,1.10177,85575.0,85561.0,0.62043]
[1766103982209,0.48388,85584.0,85565.0,0.75119]
[1766103982438,0.01096301,85583.0,85570.0,0.62043]
[1766103982647,0.61789,85586.0,85568.0,0.69060749]
[1766103982858,0.61789,85580.0,85568.0,0.07017749]
[1766103983066,0.48388,85583.0,85569.0,0.62043]
[1766103983493,1.10177,85582.0,85569.0,0.62043]
[1766103984115,1.10177,85582.0,85568.0,0.07017749]
[1766103984603,0.61789,85577.0,85562.0,0.05928]
[1766103984832,1.10177,85574.0,85562.0,0.05928]
[1766103985291,0.48388,85574.0,85562.0,0.05928]
[1766103985960,0.10062476,85591.0,85570.0,0.13076]
[1766103985961,0.70476521,85590.0,85570.0,0.13076]
[1766103986157,0.01096341,85589.0,85573.0,0.75119]
[1766103986334,0.48388,85588.0,85573.0,0.75119]
[1766103986537,0.70476521,85590.0,85568.0,0.07017749]
[1766103986538,0.49484341,85587.0,85568.0,0.07017749]
[1766103986742,0.48388,85585.0,85570.0,0.75119]
[1766103987047,0.01096296,85584.0,85570.0,0.75119]
[1766103987251,0.48388,85585.0,85570.0,0.75119]
[1766103987491,0.48388,85584.0,85570.0,0.75119]
[1766103988127,0.61789,85614.0,85581.0,0.13076]
[1766103988295,0.49484071,85613.0,85592.0,0.62043]
[1766103988637,0.48388,85611.0,85593.0,0.63444983]
[1766103988757,0.61789,85610.0,85594.0,0.01401967]
[1766103988958,0.48388,85609.0,85593.0,0.62043]
[1766103989184,1.10177,85609.0,85593.0,0.62043]
[1766103989379,1.10188025,85609.0,85593.0,0.62043]
[1766103990200,0.00011025,85609.0,85593.0,0.62043]
[1766103990411,2.5e-07,85609.0,85600.0,0.13076]
[1766103990620,0.48388,85620.0,85605.0,0.62043]
[1766103991671,1.10177,85620.0,85605.0,0.62043]
[1766103992062,0.48388,85620.0,85606.0,0.6344477]
[1766103992265,0.48388,85620.0,85606.0,0.75119025]
[1766103993290,0.48388,85620.0,85607.0,0.05928]
[1766103994637,0.48388,85630.0,85609.0,0.13065]
[1766103994854,0.48388,85630.0,85614.0,0.62043]
[1766103995057,0.48388,85630.0,85614.0,0.67971]
[1766103995540,0.48388,85630.0,85615.0,0.01401623]
[1766103995736,0.48388,85630.0,85614.0,0.67971]
[1766103997822,0.48388,85630.0,85615.0,0.13065]
[1766103998078,0.48388,85630.0,85616.0,0.62043]
[1766103998309,0.03511369,85638.0,85614.0,0.05928]
[1766103998310,1.10177,85629.0,85614.0,0.05928]
[1766103998539,1.10177,85629.0,85614.0,0.67971]
[1766103998989,0.48388,85629.0,85614.0,0.67971]
[1766103999229,0.0907,85637.0,85620.0,0.62043]
[1766103999446,0.48388,85638.0,85621.0,0.76509525]
[1766103999663,0.48388,85638.0,85621.0,0.75108]
[1766103999872,0.48388,85637.0,85622.0,0.01401508]
[1766104000067,0.48388,85637.0,85621.0,0.75108]
[1766104001010,0.48388,85637.0,85622.0,0.63444508]
[1766104001208,0.48388,85637.0,85622.0,0.62043]
[1766104001510,0.48388,85637.0,85623.0,0.01401492]
[1766104001916,0.0907,85647.0,85623.0,0.01401492]
[1766104001917,0.0907,85649.0,85625.0,0.13065]
[1766104002117,0.0907,85648.0,85630.0,0.62043]
[1766104002367,0.0907,85646.0,85630.0,0.75108]
[1766104002519,0.61789,85646.0,85630.0,0.75108]
[1766104002724,1.07643,85643.0,85626.0,0.05928]
[1766104002928,0.0907,85647.0,85626.0,0.05928]
[1766104003128,0.73987426,85650.0,85626.0,0.05928]
[1766104003328,0.48084,85643.0,85626.0,0.05928]
[1766104003538,0.48084,85642.0,85626.0,0.05928]
[1766104005544,0.48084,85641.0,85626.0,0.05928]
[1766104006056,1.07643,85641.0,85626.0,0.05928]
[1766104006797,0.48084,85640.0,85626.0,0.05928]
[1766104007620,0.48084,85639.0,85626.0,0.05928]
[1766104007828,0.59559,85639.0,85626.0,0.05928]
[1766104008062,0.48084,85638.0,85626.0,0.05928]
[1766104008624,0.001099,85626.0,85608.0,0.0907]
[1766104008843,0.001099,85626.0,85614.0,0.59621]
[1766104009059,0.05928,85630.0,85615.0,0.65549]
[1766104009266,0.48084,85628.0,85615.0,0.59621]
[1766104009475,0.48084,85628.0,85616.0,0.05928]
[1766104010111,0.48084,85627.0,85616.0,0.05928]
[1766104010313,0.001099,85616.0,85614.0,0.05928]
[1766104010762,0.48084,85625.0,85614.0,0.05928]
[1766104011346,0.01751845,85624.0,85611.0,0.59621]
[1766104011550,1.07643,85623.0,85612.0,0.05928]
[1766104011753,0.001099,85612.0,85599.0,0.59621]
[1766104011954,0.001099,85612.0,85603.0,0.05928]
[1766104012153,0.65487,85617.0,85604.0,0.07017749]
[1766104012356,1.07643,85616.0,85604.0,0.07017749]
[1766104012532,0.05928,85619.0,85610.0,0.59621]
[1766104012736,0.05928,85619.0,85612.0,0.59621]
[1766104013544,0.05928,85619.0,85613.0,0.01401656]
[1766104013757,0.48084,85626.0,85613.0,0.65549]
[1766104014573,0.01655061,85625.0,85613.0,0.65549]
[1766104014783,0.01655061,85625.0,85613.0,0.05928]
[1766104015005,1.07643,85624.0,85613.0,0.05928]
[1766104015426,0.05928,85628.0,85613.0,0.05928]
[1766104015650,0.59559,85625.0,85613.0,0.05928]
[1766104015857,0.48084,85624.0,85613.0,0.05928]
[1766104016869,0.31675423,85624.0,85613.0,0.05928]
[1766104018009,0.59559,85623.0,85609.0,0.05928]
[1766104018257,0.65487,85628.0,85611.0,0.59621]
[1766104018447,0.59559,85626.0,85611.0,0.59621]
[1766104018676,0.05928,85628.0,85612.0,0.35376]
[1766104018677,0.01094163,85625.0,85612.0,0.35376]
[1766104018814,0.01094163,85624.0,85612.0,0.35376]
[1766104019015,1.07643,85627.0,85612.0,0.35376]
[1766104019239,0.0109414,85626.0,85612.0,0.35376]
[1766104019436,0.48084,85625.0,85612.0,0.35376]
[1766104019640,0.48084,85625.0,85609.0,0.05928]
[1766104019641,0.48084,85622.0,85609.0,0.05928]
[1766104020375,0.01094846,85621.0,85609.0,0.05928]
[1766104020577,0.01094846,85621.0,85610.0,0.01401705]
[1766104020751,0.48084,85622.0,85611.0,0.59621]
[1766104020952,0.48084,85622.0,85612.0,0.01401672]
[1766104021556,0.48084,85627.0,85612.0,0.61022672]
[1766104021764,0.01094898,85626.0,85612.0,0.59621]
[1766104022409,0.01094898,85626.0,85618.0,0.35376]
[1766104022566,0.05928,85628.0,85619.0,0.59621]
[1766104023092,1.13571,85637.0,85620.0,0.35376]
[1766104023291,0.01094893,85636.0,85621.0,0.59621]
[1766104023587,0.01094893,85636.0,85622.0,0.59621]
[1766104023802,1.08737893,85636.0,85622.0,0.59621]
[1766104024017,0.01094893,85635.0,85622.0,0.59621]
[1766104024837,0.01095014,85634.0,85622.0,0.58021]
[1766104025014,0.01095014,85633.0,85622.0,0.58021]
[1766104025216,0.01095014,85632.0,85622.0,0.58021]
[1766104025421,0.01095014,85631.0,85621.0,0.35376]
[1766104025624,1.08265,85634.0,85621.0,0.35376]
[1766104025830,0.01095039,85633.0,85621.0,0.35376]
[1766104026686,0.01095039,85633.0,85622.0,0.07017749]
[1766104027869,0.62006,85630.0,85619.0,0.05928]
[1766104028072,0.02846825,85629.0,85617.0,0.05928]
[1766104028250,0.02846825,85629.0,85605.0,0.0468]
[1766104028251,0.01095083,85628.0,85618.0,1.02497]
[1766104028617,0.01095083,85628.0,85618.0,0.96569]
[1766104028618,0.01751783,85627.0,85618.0,0.96569]
[1766104028899,0.01095083,85626.0,85618.0,0.96569]
[1766104029104,0.01095083,85626.0,85614.0,0.05928]
[1766104029300,1.16735521,85630.0,85617.0,0.96569]
[1766104029459,0.70401874,85627.0,85617.0,0.96569]
[1766104029660,0.01095146,85626.0,85617.0,0.96569]
[1766104029864,1.16660874,85630.0,85617.0,0.96569]
[1766104030088,0.01095158,85629.0,85617.0,0.96569]
[1766104030485,1.08265,85626.0,85614.0,0.05928]
[1766104030685,1.08265,85629.0,85614.0,0.05928]
[1766104031019,0.62006,85627.0,85614.0,0.05928]
[1766104031224,0.62006,85623.0,85614.0,0.05928]
[1766104031440,1.08265,85622.0,85614.0,0.05928]
[1766104031874,0.62006,85639.0,85618.0,0.61193]
[1766104032100,0.63101073,85638.0,85622.0,0.61193]
[1766104032328,0.62006,85636.0,85622.0,0.61193]
[1766104032568,0.62006,85636.0,85621.0,0.05928]
[1766104032773,0.60707,85631.0,85621.0,0.05928]
[1766104032979,0.60707,85625.0,85618.0,0.05928]
[1766104033190,0.60707,85625.0,85618.0,0.05911245]
[1766104033676,0.49033,85624.0,85618.0,0.05911245]
[1766104033887,1.0974,85624.0,85618.0,0.05911245]
[1766104034866,0.001099,85618.0,85614.0,0.05928]
[1766104035091,0.01751906,85621.0,85614.0,0.05928]
[1766104035276,1.0974,85621.0,85614.0,0.05928]
[1766104035596,0.01751927,85620.0,85614.0,0.05928]
[1766104036382,0.49033,85620.0,85614.0,0.05928]
[1766104039951,1.0974,85618.0,85610.0,0.05928]
[1766104041051,0.49033,85618.0,85610.0,0.05928]
[1766104042096,0.49033,85618.0,85606.0,0.00011025]
[1766104042097,0.60707,85616.0,85606.0,0.00011025]
[1766104042304,1.0974,85610.0,85606.0,2.5e-07]
[1766104042513,0.05928,85613.0,85599.0,0.05928]
[1766104042739,1.0974,85612.0,85599.0,0.05928]
[1766104043158,0.54972027,85613.0,85599.0,0.05928]
[1766104043370,0.54972027,85613.0,85602.0,0.62335]
[1766104043371,0.05939027,85613.0,85602.0,0.62335]
[1766104043993,0.05939027,85613.0,85602.0,1.0975]
[1766104044817,0.05939027,85613.0,85602.0,0.47415]
[1766104045189,0.05939027,85613.0,85605.0,0.47415]
[1766104045362,0.05939027,85613.0,85608.0,0.62335]
[1766104045363,2.7e-07,85613.0,85608.0,0.62335]
[1766104045600,0.001099,85608.0,85599.0,0.68263]
[1766104045802,0.70401874,85610.0,85599.0,0.14998]
[1766104046001,1.0974,85609.0,85599.0,0.0907]
[1766104046206,1.0974,85609.0,85598.0,0.05928]
[1766104046388,0.70401874,85610.0,85595.0,0.05928]
[1766104046389,1.0974,85607.0,85595.0,0.05928]
[1766104046590,0.76329874,85610.0,85595.0,0.05928]
[1766104047177,1.0974,85608.0,85595.0,0.05928]
[1766104047353,1.0974,85606.0,85595.0,0.05928]
[1766104047558,0.01752234,85605.0,85586.0,0.47342]
[1766104047782,0.49033,85601.0,85590.0,0.05928]
[1766104051496,1.0974,85600.0,85590.0,0.05928]
[1766104051701,0.05928,85604.0,85591.0,0.62335]
[1766104051908,0.05928,85604.0,85596.0,1.09677]
[1766104052139,0.05928,85604.0,85597.0,0.62335]
[1766104052834,0.05928,85607.0,85597.0,0.62335]